fUST/lending_fUST_20260509
["ID","MTS","AMOUNT","RATE_DAILY","PERIOD"]
[421883451,1778275846000,-1077.95503831,0.000168,2]
[421883455,1778275846000,-500.0,0.00016973,2]
[421883456,1778275846000,-500.0,0.00016973,2]
[421883454,1778275846000,-500.0,0.00016973,2]
[421883457,1778275846000,-500.0,0.00016973,2]
[421883459,1778275846000,-500.0,0.00016973,2]
[421883461,1778275846000,-160.81481173,0.00016973,2]
[421883463,1778275846000,-500.73095066,0.00016973,2]
[421883464,1778275846000,-267.87507116,0.00016973,2]
[421883465,1778275846000,-500.0,0.00016973,2]
[421883460,1778275846000,-500.0,0.00016973,2]
[421883410,1778275846000,-467.655003,0.00016438,2]
[421883462,1778275846000,-500.0,0.00016973,2]
[421883452,1778275846000,-5850.03357291,0.00016873,2]
[421883429,1778275846000,-453.79977,0.00016438,2]
[421883443,1778275846000,-1077.95503831,0.000165,2]
[421883437,1778275846000,-467.655003,0.00016438,2]
[421883434,1778275846000,-467.655003,0.00016438,2]
[421883401,1778275846000,-357.773055,0.00016438,2]
[421883402,1778275846000,-357.773055,0.00016438,2]
[421883411,1778275846000,-453.79977,0.00016438,2]
[421883404,1778275846000,-340.13,0.00016438,2]
[421883405,1778275846000,-453.79977,0.00016438,2]
[421883423,1778275846000,-416.271948,0.00016438,2]
[421883413,1778275846000,-416.271948,0.00016438,2]
[421883403,1778275846000,-226.76,0.00016438,2]
[421883414,1778275846000,-467.655003,0.00016438,2]
[421883424,1778275846000,-467.655003,0.00016438,2]
[421883415,1778275846000,-453.79977,0.00016438,2]
[421883412,1778275846000,-453.79977,0.00016438,2]
[421883418,1778275846000,-467.655003,0.00016438,2]
[421883416,1778275846000,-416.271948,0.00016438,2]
[421883427,1778275846000,-467.655003,0.00016438,2]
[421883422,1778275846000,-467.655003,0.00016438,2]
[421883430,1778275846000,-453.79977,0.00016438,2]
[421883431,1778275846000,-467.655003,0.00016438,2]
[421883432,1778275846000,-416.271948,0.00016438,2]
[421883435,1778275846000,-416.271948,0.00016438,2]
[421883425,1778275846000,-453.79977,0.00016438,2]
[421883426,1778275846000,-416.271948,0.00016438,2]
[421883421,1778275846000,-453.79977,0.00016438,2]
[421883419,1778275846000,-416.271948,0.00016438,2]
[421883417,1778275846000,-467.655003,0.00016438,2]
[421883420,1778275846000,-453.79977,0.00016438,2]
[421883428,1778275846000,-416.271948,0.00016438,2]
[421883483,1778275847000,-500.0,0.00016973,2]
[421883482,1778275847000,-500.0,0.00016973,2]
[421883479,1778275847000,-541.63147354,0.00016973,2]
[421883480,1778275847000,-500.0,0.00016973,2]
[421883485,1778275847000,-500.0,0.00016973,2]
[421883493,1778275847000,-200.841359,0.00016973,2]
[421883487,1778275847000,-411.0510876,0.00016973,2]
[421883486,1778275847000,-500.0,0.00016973,2]
[421883489,1778275847000,-1145.77593,0.00016973,2]
[421883488,1778275847000,-1145.77593,0.00016973,2]
[421883491,1778275847000,-1145.775936,0.00016973,2]
[421883490,1778275847000,-1145.77593,0.00016973,2]
[421883481,1778275847000,-500.0,0.00016973,2]
[421883466,1778275847000,-155.24676507,0.00016973,2]
[421883478,1778275847000,-534.63908698,0.00016973,2]
[421883484,1778275847000,-500.0,0.00016973,2]
[421883476,1778275847000,-500.0,0.00016973,2]
[421883475,1778275847000,-500.0,0.00016973,2]
[421883471,1778275847000,-508.46377896,0.00016973,2]
[421883472,1778275847000,-188.17930419,0.00016973,2]
[421883474,1778275847000,-500.0,0.00016973,2]
[421883468,1778275847000,-500.0,0.00016973,2]
[421883470,1778275847000,-500.0,0.00016973,2]
[421883473,1778275847000,-500.0,0.00016973,2]
[421883469,1778275847000,-500.0,0.00016973,2]
[421883467,1778275847000,-500.0,0.00016973,2]
[421883494,1778275847000,-526.050644,0.00016973,2]
[421883477,1778275847000,-500.0,0.00016973,2]
[421883492,1778275847000,-151.0,0.00016973,2]
[421883510,1778275847000,-350.0,0.00016978,2]
[421883496,1778275847000,-526.050644,0.00016973,2]
[421883495,1778275847000,-526.050644,0.00016973,2]
[421883524,1778275847000,-1365.08688612,0.00017,2]
[421883522,1778275847000,-500.0,0.00016764,2]
[421883519,1778275847000,-1000.0,0.000155,2]
[421883520,1778275847000,-1000.0,0.00016,2]
[421883521,1778275847000,-1000.0,0.000165,2]
[421883518,1778275847000,-48813.52944971,0.00017,2]
[421883515,1778275847000,-650.0,0.00016986,2]
[421883516,1778275847000,-418.48903139,0.00016989,2]
[421883517,1778275847000,-605966.56340236,0.00017,2]
[421883514,1778275847000,-546.55,0.00016986,2]
[421883512,1778275847000,-450.0,0.00016981,2]
[421883513,1778275847000,-550.0,0.00016984,2]
[421883523,1778275847000,-12976.47080799,0.00017,2]
[421883505,1778275847000,-10000.0,0.00016973,2]
[421883511,1778275847000,-84140.11234506,0.0001698,2]
[421883497,1778275847000,-516.743068,0.00016973,2]
[421883499,1778275847000,-516.743068,0.00016973,2]
[421883498,1778275847000,-526.05064,0.00016973,2]
[421883502,1778275847000,-151.0,0.00016973,2]
[421883503,1778275847000,-151.0,0.00016973,2]
[421883501,1778275847000,-516.743065,0.00016973,2]
[421883500,1778275847000,-516.743068,0.00016973,2]
[421883504,1778275847000,-151.0,0.00016973,2]
[421883506,1778275847000,-10000.0,0.00016973,2]
[421883507,1778275847000,-10000.0,0.00016973,2]
[421883508,1778275847000,-10000.0,0.00016973,2]
[421883509,1778275847000,-250.0,0.00016975,2]
[421883598,1778277032000,-300.0,0.00013156,2]
[421883607,1778277032000,-300.0,0.00013156,2]
[421883605,1778277032000,-300.0,0.00013156,2]
[421883603,1778277032000,-300.0,0.00013156,2]
[421883596,1778277032000,-500.0,0.00012999,2]
[421883611,1778277032000,-300.0,0.00013156,2]
[421883594,1778277032000,-415.80286446,0.00012999,2]
[421883584,1778277032000,-5000.0,0.00011972,2]
[421883592,1778277032000,-737.0,0.00012997,2]
[421883600,1778277032000,-300.0,0.00013156,2]
[421883590,1778277032000,-241.34323942,0.00012193,2]
[421883588,1778277032000,-300.0,0.0001213,2]
[421883586,1778277032000,-7127.12242333,0.00012093,2]
[421883609,1778277032000,-300.0,0.00013156,2]
[421883602,1778277032000,-300.0,0.00013156,2]
[421883613,1778277032000,-300.0,0.00013156,2]
[421883635,1778277032000,-500.0,0.00013698,2]
[421883616,1778277032000,-300.0,0.00013156,2]
[421883614,1778277032000,-300.0,0.00013156,2]
[421883632,1778277032000,-500.0,0.00013698,2]
[421883631,1778277032000,-500.0,0.00013698,2]
[421883626,1778277032000,-214.29279212,0.00013272,2]
[421883628,1778277032000,-462.85,0.00013273,2]
[421883627,1778277032000,-500.0,0.00013272,2]
[421883625,1778277032000,-255.90837849,0.00013272,2]
[421883633,1778277032000,-500.0,0.00013698,2]
[421883629,1778277032000,-600.0,0.00013418,2]
[421883630,1778277032000,-2618.0604806,0.00013663,2]
[421883618,1778277032000,-300.0,0.00013156,2]
[421883620,1778277032000,-300.0,0.00013156,2]
[421883634,1778277032000,-500.0,0.00013698,2]
[421883624,1778277032000,-539.2,0.00013272,2]
[421883622,1778277032000,-300.0,0.00013156,2]
[421883623,1778277032000,-300.0,0.00013156,2]
[421883640,1778277033000,-32.86254298,0.00014215,2]
[421883637,1778277033000,-1000.0,0.00013699,2]
[421883638,1778277033000,-191.9479485,0.00013943,2]
[421883636,1778277033000,-1000.0,0.00013699,2]
[421883639,1778277033000,-284.78502252,0.00014193,2]
[421883701,1778277039000,-160.0,0.00014215,2]
[421883703,1778277039000,-57.5139385,0.0001476,2]
[421883702,1778277039000,-2215.0,0.00014499,2]
[421883699,1778277039000,-160.0,0.00014215,2]
[421883697,1778277039000,-128.72625529,0.00014215,2]
[421883712,1778277044000,-662.4860615,0.0001476,2]
[421883713,1778277044000,-374.8971185,0.00015068,2]
[421883717,1778277047000,-363.1900214,0.00016,2]
[421883715,1778277047000,-233.6488495,0.00015068,2]
[421883716,1778277047000,-279.372,0.00015778,2]
[421883718,1778277925000,2710.75559043,7.6e-05,2]
[421883747,1778278231000,-242.22040932,0.00011072,2]
[421883745,1778278231000,-503.56012524,0.0001,2]
[421883749,1778278231000,-300.0,0.00011751,10]
[421883751,1778278231000,-285.82008299,0.00013072,2]
[421883753,1778278231000,-320.8138415,0.00013111,2]
[421883759,1778278231000,-1000.0,0.00013699,2]
[421883755,1778278231000,-2123.8061876,0.00013111,2]
[421883763,1778278231000,-1900.21836444,0.00014175,2]
[421883761,1778278231000,-1000.0,0.00013699,2]
[421883766,1778278231000,-185.0,0.00014229,2]
[421883767,1778278231000,-1117.64573231,0.00014386,2]
[421883765,1778278231000,-442.0,0.00014229,2]
[421883768,1778278231000,-2680.80636647,0.00014386,2]
[421883769,1778278231000,-3675.34153353,0.00014393,2]
[421883757,1778278231000,-2623.9152566,0.00013111,2]
[421883791,1778278238000,-704.220022,0.00014393,2]
[421883820,1778278243000,-151.0,0.00014613,2]
[421883817,1778278243000,-2026.00787341,0.00014393,2]
[421883818,1778278243000,-2205.0,0.00014499,2]
[421883816,1778278243000,-500.0,0.00014393,2]
[421883819,1778278243000,-4006.36646665,0.00014597,2]
[421883822,1778278243000,-4311.78547808,0.00014808,2]
[421883823,1778278243000,-160.0,0.00014819,2]
[421883815,1778278243000,-287.41003066,0.00014393,2]
[421883824,1778278243000,-500.0,0.00014999,2]
[421883821,1778278243000,-1630.08751476,0.00014745,2]
[421883831,1778278243000,-16.65293647,0.0001523,2]
[421883830,1778278243000,-329.41975667,0.00015072,2]
[421883829,1778278243000,-486.836774,0.00015068,2]
[421883826,1778278243000,-356.79816007,0.00015,2]
[421883828,1778278243000,-4617.20448961,0.00015019,2]
[421883825,1778278243000,-4258.4420396,0.00015,2]
[421883827,1778278243000,-356.79816007,0.00015,2]
[421883843,1778278246000,-161.58879827,0.00015371,2]
[421883842,1778278246000,-4905.97056467,0.0001523,2]
[421883844,1778278246000,-160.0,0.00015371,2]
[421883846,1778278246000,-2123.8061876,0.00015766,2]
[421883845,1778278246000,-1630.0875147,0.00015481,2]
[421883847,1778278246000,-2623.9152566,0.00015766,2]
[421883850,1778278246000,-3835.22773508,0.00016074,2]
[421883848,1778278246000,-499.17400926,0.00016,2]
[421883849,1778278246000,-480.91103385,0.00016074,2]
[421883851,1778279047000,5000.0,0.00010999,30]
[421883852,1778279068000,1000.0,0.0001,16]
[421884140,1778279434000,-3807.6194268,0.0001,16]
[421884159,1778279438000,-17363.11825818,0.000135,2]
[421884156,1778279438000,-236.59420973,0.00011684,2]
[421884158,1778279438000,-500.0,0.00013499,2]
[421884160,1778279438000,-2404.81356325,0.000135,2]
[421884157,1778279438000,-250.0,0.00013213,2]
[421884167,1778279440000,-948.22406145,0.00013671,2]
[421884165,1778279440000,-9999.99,0.00013671,2]
[421884166,1778279440000,-2394.44056314,0.00013671,2]
[421884164,1778279440000,-1222.56563606,0.00013571,2]
[421884163,1778279440000,-2398.54561074,0.000135,2]
[421884175,1778279443000,-3339.73672122,0.00013671,2]
[421884176,1778279443000,-3317.58865419,0.00013671,2]
[421884177,1778279443000,-485.45882031,0.00013671,2]
[421884183,1778279443000,-519.88480005,0.00013699,2]
[421884179,1778279443000,-8008.41106366,0.00013671,2]
[421884178,1778279443000,-1357.39668019,0.00013671,2]
[421884182,1778279443000,-500.0,0.00013698,2]
[421884181,1778279443000,-279.18116748,0.00013684,2]
[421884180,1778279443000,-245.15527847,0.00013671,2]
[421884188,1778279446000,-152.0,0.00013657,7]
[421884189,1778279446000,-480.11519995,0.00013699,2]
[421884187,1778279446000,-4651.89710764,0.00013584,2]
[421884190,1778279446000,-1000.0,0.00013699,2]
[421884191,1778279446000,-500.0,0.00014391,2]
[421884193,1778279446000,-892.77825153,0.00014391,2]
[421884194,1778279446000,-775.02174847,0.00014391,2]
[421884196,1778279446000,-633.63226302,0.00014399,2]
[421884195,1778279446000,-500.0,0.00014391,2]
[421884197,1778279446000,-119.99598851,0.00014399,2]
[421884192,1778279446000,-500.0,0.00014391,2]
[421884315,1778280633000,-1659.11344194,0.0001347,2]
[421884312,1778280633000,-1659.11344194,0.0001347,2]
[421884311,1778280633000,-1659.11344194,0.0001347,2]
[421884313,1778280633000,-1659.11344194,0.0001347,2]
[421884310,1778280633000,-500.0,0.0001347,2]
[421884308,1778280633000,-1401.12506407,0.0001337,2]
[421884305,1778280633000,-300.0,0.0001233,2]
[421884306,1778280633000,-300.0,0.0001233,2]
[421884304,1778280633000,-300.0,0.0001233,2]
[421884319,1778280633000,-1659.11344194,0.0001347,2]
[421884302,1778280633000,-4651.89710764,0.00012231,2]
[421884303,1778280633000,-300.0,0.0001233,2]
[421884300,1778280633000,-5000.0,0.00012208,2]
[421884301,1778280633000,-1200.0,0.0001223,2]
[421884299,1778280633000,-5000.0,0.00012086,2]
[421884307,1778280633000,-231.61511158,0.00012519,2]
[421884317,1778280633000,-1659.11344194,0.0001347,2]
[421884309,1778280633000,-218.60019282,0.00013371,2]
[421884323,1778280633000,-621.06724334,0.0001347,2]
[421884321,1778280633000,-500.0,0.0001347,2]
[421884340,1778280633000,-1659.11344194,0.0001347,2]
[421884342,1778280633000,-1659.11344194,0.0001347,2]
[421884338,1778280633000,-1659.11344194,0.0001347,2]
[421884341,1778280633000,-500.0,0.0001347,2]
[421884339,1778280633000,-500.0,0.0001347,2]
[421884337,1778280633000,-500.0,0.0001347,2]
[421884333,1778280633000,-500.0,0.0001347,2]
[421884335,1778280633000,-1659.11344194,0.0001347,2]
[421884343,1778280633000,-500.0,0.0001347,2]
[421884336,1778280633000,-500.0,0.0001347,2]
[421884331,1778280633000,-500.0,0.0001347,2]
[421884332,1778280633000,-1659.11344194,0.0001347,2]
[421884330,1778280633000,-500.0,0.0001347,2]
[421884329,1778280633000,-1659.11344194,0.0001347,2]
[421884325,1778280633000,-1659.11344194,0.0001347,2]
[421884327,1778280633000,-500.0,0.0001347,2]
[421884334,1778280633000,-1659.11344194,0.0001347,2]
[421884359,1778280634000,-1791.84251728,0.0001347,2]
[421884362,1778280634000,-1791.84251728,0.0001347,2]
[421884363,1778280634000,-1791.84251728,0.0001347,2]
[421884360,1778280634000,-1791.84251728,0.0001347,2]
[421884355,1778280634000,-500.0,0.0001347,2]
[421884354,1778280634000,-382.89972447,0.0001347,2]
[421884352,1778280634000,-500.0,0.0001347,2]
[421884353,1778280634000,-500.0,0.0001347,2]
[421884349,1778280634000,-500.0,0.0001347,2]
[421884348,1778280634000,-500.0,0.0001347,2]
[421884350,1778280634000,-500.0,0.0001347,2]
[421884347,1778280634000,-500.0,0.0001347,2]
[421884345,1778280634000,-500.0,0.0001347,2]
[421884346,1778280634000,-500.0,0.0001347,2]
[421884344,1778280634000,-1659.11344194,0.0001347,2]
[421884361,1778280634000,-1791.84251728,0.0001347,2]
[421884351,1778280634000,-500.0,0.0001347,2]
[421884357,1778280634000,-500.0,0.0001347,2]
[421884369,1778280634000,-500.0,0.0001347,2]
[421884356,1778280634000,-500.0,0.0001347,2]
[421884380,1778280634000,9194.49,0.00019178,120]
[421884378,1778280634000,-56646.32203111,0.00013471,2]
[421884377,1778280634000,-500.0,0.0001347,2]
[421884376,1778280634000,-409.53430188,0.0001347,2]
[421884374,1778280634000,-500.0,0.0001347,2]
[421884375,1778280634000,-500.0,0.0001347,2]
[421884373,1778280634000,-500.0,0.0001347,2]
[421884370,1778280634000,-500.0,0.0001347,2]
[421884371,1778280634000,-297.33445092,0.0001347,2]
[421884372,1778280634000,-500.0,0.0001347,2]
[421884379,1778280634000,-665.05,0.00013471,2]
[421884364,1778280634000,-1791.84251728,0.0001347,2]
[421884367,1778280634000,-500.0,0.0001347,2]
[421884366,1778280634000,-1791.84251728,0.0001347,2]
[421884365,1778280634000,-1791.84251728,0.0001347,2]
[421884368,1778280634000,-500.0,0.0001347,2]
[421884358,1778280634000,-1791.84251728,0.0001347,2]
[421884427,1778280638000,-2343.0,0.00013471,2]
[421884423,1778280638000,-231.61511158,0.0001347,2]
[421884425,1778280638000,-525.19920781,0.00013471,2]
[421884435,1778280640000,-310.35409388,0.00013335,2]
[421884437,1778280640000,-21.19754394,0.00013471,2]
[421884436,1778280640000,-1198.71911241,0.00013335,2]
[421884447,1778280645000,-304.0,0.00013471,2]
[421884445,1778280645000,-4234.69662205,0.00013471,2]
[421884446,1778280645000,-3481.78897372,0.00013471,2]
[421884476,1778280646000,-12719.50549113,0.00013471,2]
[421884468,1778280646000,-842.0,0.00013471,2]
[421884479,1778280647000,-7070.28912534,0.00013471,2]
[421884528,1778281832000,-300.0,0.00010199,2]
[421884525,1778281832000,-300.0,0.00010199,2]
[421884524,1778281832000,-300.0,0.00010199,2]
[421884521,1778281832000,-300.0,0.00010199,2]
[421884522,1778281832000,-300.0,0.00010199,2]
[421884519,1778281832000,-300.0,0.00010199,2]
[421884513,1778281832000,-618.07140816,0.0001,2]
[421884518,1778281832000,-300.0,0.00010199,2]
[421884520,1778281832000,-300.0,0.00010199,2]
[421884516,1778281832000,-300.0,0.00010199,2]
[421884515,1778281832000,-222.35050712,0.000101,2]
[421884514,1778281832000,-5497.72452023,0.0001,2]
[421884512,1778281832000,-800.0,9.9e-05,2]
[421884527,1778281832000,-300.0,0.00010199,2]
[421884517,1778281832000,-300.0,0.00010199,2]
[421884526,1778281832000,-300.0,0.00010199,2]
[421884543,1778281832000,-264.76663605,0.00013269,2]
[421884530,1778281832000,-300.0,0.00010199,2]
[421884523,1778281832000,-300.0,0.00010199,2]
[421884542,1778281832000,-500.0,0.00013269,2]
[421884544,1778281832000,-241488.27985633,0.0001327,2]
[421884539,1778281832000,-1225.98443107,0.00013203,2]
[421884540,1778281832000,-477.48160566,0.00013269,2]
[421884534,1778281832000,-864.0,0.00012586,2]
[421884538,1778281832000,-218.60019282,0.00013203,2]
[421884541,1778281832000,-500.0,0.00013269,2]
[421884536,1778281832000,-151.6944714,0.00012981,2]
[421884535,1778281832000,-325.7699083,0.00012981,2]
[421884533,1778281832000,-262.3735984,0.000121,2]
[421884532,1778281832000,-720.0,0.00011442,2]
[421884531,1778281832000,-600.0,0.00010402,2]
[421884529,1778281832000,-300.0,0.00010199,2]
[421884537,1778281832000,-456.327598,0.00012981,2]
[421884604,1778281838000,-500.0,0.00013095,2]
[421884602,1778281838000,-162.87648604,0.00013095,2]
[421884606,1778281838000,-500.0,0.00013095,2]
[421884608,1778281838000,-500.0,0.00013095,2]
[421884600,1778281838000,-152.74953637,0.00013095,2]
[421884598,1778281838000,-524.22268346,0.00013095,2]
[421884610,1778281838000,-500.0,0.00013095,2]
[421884596,1778281838000,-500.0,0.00013095,2]
[421884612,1778281838000,-156.04734443,0.00013095,2]
[421884636,1778281841000,-262.43249412,0.00013095,2]
[421884634,1778281841000,-343.95265557,0.00013095,2]
[421884635,1778281841000,-500.0,0.00013095,2]
[421884663,1778281993000,322.61685106,0.0001,30]
[421884826,1778283044000,-390.78040377,0.00011862,2]
[421884824,1778283044000,-300.0,0.00011368,23]
[421884845,1778283047000,-516.73,0.00013168,2]
[421884851,1778283047000,-500.0,0.00013168,2]
[421884850,1778283047000,-500.0,0.00013168,2]
[421884849,1778283047000,-573.94596617,0.00013168,2]
[421884837,1778283047000,-4609.21959623,0.00011862,2]
[421884841,1778283047000,-205.47181982,0.00013145,2]
[421884840,1778283047000,-160.4069208,0.00013145,2]
[421884838,1778283047000,-228.7729029,0.00011982,2]
[421884839,1778283047000,-20618.48335436,0.0001307,2]
[421884842,1778283047000,-35.13856128,0.00013145,2]
[421884843,1778283047000,-1582.5738147,0.00013145,2]
[421884847,1778283047000,-692.41,0.00013168,2]
[421884848,1778283047000,-500.0,0.00013168,2]
[421884846,1778283047000,-500.0,0.00013168,2]
[421884852,1778283047000,-286.67401131,0.0001337,2]
[421884854,1778283047000,-1248.98059909,0.0001337,2]
[421884855,1778283047000,-1248.98059909,0.0001337,2]
[421884856,1778283047000,-1248.98059909,0.0001337,2]
[421884853,1778283047000,-1248.98059909,0.0001337,2]
[421884859,1778283047000,-1142.95795618,0.0001337,2]
[421884858,1778283047000,-1248.98059909,0.0001337,2]
[421884857,1778283047000,-1248.98059909,0.0001337,2]
[421884844,1778283047000,-1061.9030938,0.00013145,2]
[421884863,1778283943000,151.0,8.16e-05,2]
[421884864,1778283952000,151.0,8.16e-05,2]
[421884865,1778283960000,151.0,8.16e-05,2]
[421884866,1778283968000,151.0,8.16e-05,2]
[421885057,1778284240000,-177.76271435,0.000131,2]
[421885055,1778284240000,-160.6098287,0.000131,2]
[421885059,1778284240000,-181.49136772,0.000131,2]
[421885045,1778284240000,-309.84955514,0.00012993,2]
[421885047,1778284240000,-151.5,0.00012993,2]
[421885046,1778284240000,-151.5,0.00012993,2]
[421885044,1778284240000,-500.0,0.00012993,2]
[421885050,1778284240000,-1000.0,0.00013,2]
[421885042,1778284240000,-500.0,0.00012993,2]
[421885041,1778284240000,-500.0,0.00012993,2]
[421885035,1778284240000,-224.19744484,0.00012615,2]
[421885039,1778284240000,-500.0,0.00012993,2]
[421885043,1778284240000,-500.0,0.00012993,2]
[421885036,1778284240000,-325.7485516,0.00012955,2]
[421885040,1778284240000,-500.0,0.00012993,2]
[421885037,1778284240000,-426.7119974,0.00012955,2]
[421885034,1778284240000,-998.55307819,0.00012363,2]
[421885033,1778284240000,-643.78105749,0.00012363,2]
[421885038,1778284240000,-1435.29608455,0.0001299,2]
[421885061,1778284240000,-183.99159211,0.000131,2]
[421885069,1778284240000,-1511.27669678,0.00013166,2]
[421885048,1778284240000,-201.37199145,0.00012993,2]
[421885078,1778284240000,-1314.39607915,0.00013166,2]
[421885076,1778284240000,-1511.27669678,0.00013166,2]
[421885077,1778284240000,-1511.27669678,0.00013166,2]
[421885075,1778284240000,-1511.27669678,0.00013166,2]
[421885071,1778284240000,-1511.27669678,0.00013166,2]
[421885072,1778284240000,-1511.27669678,0.00013166,2]
[421885074,1778284240000,-1511.27669678,0.00013166,2]
[421885068,1778284240000,-1511.27669678,0.00013166,2]
[421885070,1778284240000,-1511.27669678,0.00013166,2]
[421885049,1778284240000,-325.0,0.00012999,2]
[421885065,1778284240000,-1511.27669678,0.00013166,2]
[421885053,1778284240000,-663.56,0.00013069,2]
[421885051,1778284240000,-500.0,0.00013069,2]
[421885062,1778284240000,-1789.11658,0.00013145,2]
[421885063,1778284240000,-322.37301707,0.00013166,2]
[421885067,1778284240000,-1511.27669678,0.00013166,2]
[421885066,1778284240000,-1511.27669678,0.00013166,2]
[421885073,1778284240000,-1511.27669678,0.00013166,2]
[421885064,1778284240000,-1511.27669678,0.00013166,2]
[421885091,1778284243000,-1511.27669678,0.00013166,2]
[421885093,1778284243000,-1511.27669678,0.00013166,2]
[421885089,1778284243000,-196.88061763,0.00013166,2]
[421885092,1778284243000,-1511.27669678,0.00013166,2]
[421885094,1778284243000,-1228.40708742,0.00013166,2]
[421885090,1778284243000,-1511.27669678,0.00013166,2]
[421885113,1778284246000,-500.0,0.00013166,2]
[421885105,1778284246000,-378.91489034,0.00013166,2]
[421885106,1778284246000,-500.0,0.00013166,2]
[421885107,1778284246000,-229.60935488,0.00013166,2]
[421885108,1778284246000,-500.0,0.00013166,2]
[421885111,1778284246000,-500.0,0.00013166,2]
[421885110,1778284246000,-500.0,0.00013166,2]
[421885115,1778284246000,-187.07122373,0.00013166,2]
[421885104,1778284246000,-121.08510966,0.00013166,2]
[421885109,1778284246000,-500.0,0.00013166,2]
[421885112,1778284246000,-500.0,0.00013166,2]
[421885116,1778284246000,-500.0,0.00013166,2]
[421885118,1778284246000,-379.40453105,0.00013167,2]
[421885103,1778284246000,-282.86960936,0.00013166,2]
[421885117,1778284246000,-500.0,0.00013166,2]
[421885114,1778284246000,-500.0,0.00013166,2]
[421885119,1778284246000,-75583.04987132,0.00013167,2]
[421885120,1778284891000,200.0,0.00016741,120]
[421885121,1778284950000,200.0,0.000173,120]
[421885122,1778285010000,200.0,0.00016567,120]
[421885169,1778285432000,-2274.70622617,9.801e-05,2]
[421885175,1778285432000,-199.0,0.00011,30]
[421885171,1778285432000,-225.47718532,9.901e-05,2]
[421885173,1778285432000,-503.56012524,0.0001,2]
[421885180,1778285432000,-266.06307868,0.00011901,2]
[421885190,1778285432000,-251.38576707,0.00012966,2]
[421885188,1778285432000,-257.56268817,0.00012966,2]
[421885182,1778285432000,-500.0,0.00012966,2]
[421885195,1778285432000,-294.03811208,0.00012967,2]
[421885186,1778285432000,-500.0,0.00012966,2]
[421885192,1778285432000,-2379.71994905,0.00012967,2]
[421885184,1778285432000,-304.56027847,0.00012966,2]
[421885297,1778285438000,-77613.94146293,0.00012967,2]
[421885294,1778285438000,-51864.34147955,0.00012967,2]
[421885292,1778285438000,-9641.55576791,0.00012967,2]
[421885439,1778285446000,-39926.38918905,0.00012967,2]
[421885463,1778286632000,-91.5826398,0.00011714,2]
[421885462,1778286632000,-458.0413602,0.00011326,2]
[421885519,1778286638000,-152.0,0.00012975,7]
[421885512,1778286638000,-500.0,0.00012865,2]
[421885507,1778286638000,-151.0,0.00012767,2]
[421885508,1778286638000,-151.0,0.00012767,2]
[421885514,1778286638000,-578.20924308,0.00012868,2]
[421885506,1778286638000,-500.0,0.00012766,2]
[421885511,1778286638000,-511.35,0.00012865,2]
[421885500,1778286638000,-537.6845,0.00012758,2]
[421885505,1778286638000,-151.0,0.00012766,2]
[421885501,1778286638000,-500.0,0.00012764,2]
[421885509,1778286638000,-151.0,0.00012767,2]
[421885503,1778286638000,-500.0,0.00012766,2]
[421885504,1778286638000,-155.0,0.00012766,2]
[421885499,1778286638000,-511.70225796,0.00012758,2]
[421885502,1778286638000,-151.0,0.00012765,2]
[421885496,1778286638000,-222.41042081,0.00011833,2]
[421885497,1778286638000,-323.761,0.00012511,2]
[421885495,1778286638000,-4908.4173602,0.00011714,2]
[421885524,1778286638000,-4989.2143563,0.00012991,2]
[421885510,1778286638000,-557.5788265,0.00012813,2]
[421885498,1778286638000,-38233.86460696,0.00012665,2]
[421885516,1778286638000,-1440.6571154,0.000129,2]
[421885526,1778286638000,-500.0,0.00013038,2]
[421885523,1778286638000,-882.2380642,0.00012991,2]
[421885535,1778286638000,-667.42656494,0.00013168,2]